[Event "PanAm Intercolleagiate-ch 2019"]
[Site "Charlotte"]
[Date "2019.12.29"]
[Round "3.10"]
[White "Marek, Matyas"]
[Black "Gledura, Benjamin"]
[Result "0-1"]
[ECO "A07"]
[WhiteElo "2378"]
[BlackElo "2626"]
[Annotator "RC"]
[PlyCount "112"]
[EventDate "2019.12.27"]
[EventType "team-tourn"]
[EventCountry "USA"]
[SourceTitle "playchess.com"]
[Source "ChessBase"]
[SourceQuality "1"]
[TimeControl "5400+30"]

1. Nf3 {[%emt 0:00:00]} d5 {[%emt 0:00:00]} 2. g3 {[%emt 0:00:00]} g6 {[%emt 0:00:23]} 3. Bg2 {[%emt 0:00:00]} Bg7 {[%emt 0:00:19]} 4. O-O {[%emt 0:03:31]} e5 {[%emt 0:00:36]} 5. d3 {[%emt 0:00:05]} Ne7 {[%emt 0:01:03]} 6. e4 {[%emt 0:02:30]} O-O {[%emt 0:01:59]} 7. Nbd2 {[%emt 0:00:50]} Nbc6 {[%emt 0:04:10]} 8. b3 {[%emt 0:01:19]} d4 {[%emt 0:01:23]} 9. a4 {[%emt 0:02:08]} Nb4 {[%emt 0:06:40]} 10. Nc4 {[%emt 0:02:48]} Nec6 {[%emt 0:00:50]} 11. a5 {[%emt 0:04:33]} Qe7 {[%emt 0:01:53]} 12. Qd2 {[%emt 0:12:56]} Bg4 {[%emt 0:12:35]} 13. Ba3 {[%emt 0:04:08]} Bxf3 {[%emt 0:03:13]} 14. Bxf3 {[%emt 0:00:02]} b5 {[%emt 0:05:06]} 15. axb6 {[%emt 0:01:04]} axb6 {[%emt 0:00:06]} 16. Kg2 {[%emt 0:02:20]} Rfd8 {[%emt 0:05:57]} 17. Bg4 {[%emt 0:31:06]} Bf8 {[%emt 0:04:38]} 18. f4 {[%emt 0:00:15]} exf4 {[%emt 0:01:02]} 19. Qxf4 {[%emt 0:04:12]} b5 {[%emt 0:02:44]} 20. Nd2 {[%emt 0:02:55]} Rxa3 {[%emt 0:01:34]} 21. Rxa3 {[%emt 0:00:07]} Nxc2 {[%emt 0:00:09]} 22. Raa1 {[%emt 0:02:13]} Ne5 {[%emt 0:02:28]} 23. Be2 {[%emt 0:00:43]} Nxa1 {[%emt 0:00:54]} 24. Rxa1 {[%emt 0:00:02]} Qe6 {[%emt 0:03:41]} 25. Ra7 {[%emt 0:02:33]} Bd6 {[%emt 0:01:05]} 26. Qf1 {[%emt 0:00:16]} h5 {[%emt 0:03:50]} 27. Qa1 {[%emt 0:02:19]} Bb4 {[%emt 0:06:44]} 28. Nf3 {[%emt 0:03:38]} Nxf3 {[%emt 0:00:12]} 29. Kxf3 {[%emt 0:00:58]} c6 {[%emt 0:19:45]} 30. Ra8 {[%emt 0:01:40]} Rxa8 {[%emt 0:00:51]} 31. Qxa8+ {[%emt 0:00:10]} Kg7 {[%emt 0:00:10]} 32. Kg2 {[%emt 0:00:54]} h4 {[%emt 0:01:07]} 33. Qd8 {[%emt 0:07:59]} h3+ {[%emt 0:00:33]} 34. Kf2 {[%emt 0:01:36]} Bd6 {[%emt 0:01:47]} 35. Bg4 {[%emt 0:02:45]} Qxg4 {[%emt 0:00:27]} 36. Qxd6 {[%emt 0:00:07]} Qd1 {[%emt 0:00:44]} 37. Qxd4+ {[%emt 0:01:18]} Kh7 {[%emt 0:00:01]} 38. Qd7 {[%emt 0:00:19]} Qxb3 {[%emt 0:00:32]} 39. Qxh3+ {[%emt 0:00:06]} Kg7 {[%emt 0:00:04]} 40. Qd7 {[%emt 0:00:57]} Qb2+ {[%emt 0:00:55]} 41. Kf3 {[%emt 0:00:57]} c5 {[%emt 0:00:40]} 42. e5 {[%emt 0:00:48]} Qxh2 {[%emt 0:03:05]} 43. Qxb5 {[%emt 0:01:00]} Qh5+ {[%emt 0:00:02]} 44. Ke4 {[%emt 0:00:32]} Qf5+ {[%emt 0:00:07]} 45. Kd5 {[%emt 0:00:22]} Qe6+ {[%emt 0:00:09]} 46. Ke4 {[%emt 0:00:24]} f5+ {[%emt 0:00:50]} 47. Kf4 {[%emt 0:01:08]} g5+ {[%emt 0:00:07]} 48. Kf3 {[%emt 0:00:53]} Qxe5 {[%emt 0:00:11]} 49. Qd7+ {[%emt 0:00:05]} Kg6 {[%emt 0:00:26]} 50. Qd8 {[%emt 0:00:55]} g4+ {[%emt 0:00:47]} 51. Kg2 {[%emt 0:00:16]} Qe2+ {[%emt 0:00:07]} 52. Kg1 {[%emt 0:00:37]} Qe3+ {[%emt 0:00:07]} 53. Kg2 {[%emt 0:00:06]} Qf3+ {[%emt 0:00:05]} 54. Kh2 {[%emt 0:00:03]} Qf2+ {[%emt 0:00:08]} 55. Kh1 {[%emt 0:00:02]} Qf1+ {[%emt 0:00:07]} 56. Kh2 {[%emt 0:00:04]} Qh3+ {[%emt 0:00:06]} 0-1

[Event "PanAm Intercolleagiate-ch 2019"]
[Site "Charlotte"]
[Date "2019.12.29"]
[Round "3.14"]
[White "Shtembuliak, Evgeny"]
[Black "Hevia Alejano, Carlos Antonio"]
[Result "1/2-1/2"]
[ECO "A28"]
[WhiteElo "2600"]
[BlackElo "2465"]
[Annotator "RC"]
[PlyCount "58"]
[EventDate "2019.12.27"]
[EventType "team-tourn"]
[EventCountry "USA"]
[SourceTitle "playchess.com"]
[Source "ChessBase"]
[SourceQuality "1"]
[TimeControl "5400+30"]

1. c4 {[%emt 0:00:00]} e5 {[%emt 0:08:49]} 2. Nc3 {[%emt 0:00:00]} Nf6 {[%emt 0:00:16]} 3. Nf3 {[%emt 0:00:00]} Nc6 {[%emt 0:00:07]} 4. e3 {[%emt 0:00:09]} Bb4 {[%emt 0:00:36]} 5. Qc2 {[%emt 0:00:06]} Bxc3 {[%emt 0:01:43]} 6. bxc3 {[%emt 0:00:05]} O-O {[%emt 0:00:15]} 7. d3 {[%emt 0:00:16]} d6 {[%emt 0:00:40]} 8. Be2 {[%emt 0:00:07]} h6 {[%emt 0:05:45]} 9. O-O {[%emt 0:01:45]} b6 {[%emt 0:04:16]} 10. e4 {[%emt 0:03:41]} Ne7 {[%emt 0:01:45]} 11. a4 {[%emt 0:04:24]} a5 {[%emt 0:06:29]} 12. d4 {[%emt 0:06:09]} Bb7 {[%emt 0:14:44]} 13. Nd2 {[%emt 0:08:19]} c5 {[%emt 0:03:39]} 14. dxe5 {[%emt 0:07:48]} dxe5 {[%emt 0:00:01]} 15. Rd1 {[%emt 0:00:23]} Ng6 {[%emt 0:01:53]} 16. g3 {[%emt 0:00:46]} Qc8 {[%emt 0:08:55]} 17. Rb1 {[%emt 0:07:58]} Qc6 {[%emt 0:17:58]} 18. f3 {[%emt 0:01:08]} h5 {[%emt 0:00:57]} 19. Nf1 {[%emt 0:02:35]} h4 {[%emt 0:00:14]} 20. Ne3 {[%emt 0:00:18]} Qe6 {[%emt 0:03:19]} 21. Bf1 {[%emt 0:01:41]} Rad8 {[%emt 0:01:32]} 22. Nd5 {[%emt 0:00:52]} Rd6 {[%emt 0:00:05]} 23. Be3 {[%emt 0:02:07]} Bc8 {[%emt 0:03:30]} 24. Rb2 {[%emt 0:05:52]} Nxd5 {[%emt 0:04:19]} 25. cxd5 {[%emt 0:00:38]} Qf6 {[%emt 0:00:01]} 26. Qf2 {[%emt 0:11:54]} Bd7 {[%emt 0:00:17]} 27. f4 {[%emt 0:34:29]} hxg3 {[%emt 0:04:53]} 28. hxg3 {[%emt 0:00:00]} exf4 {[%emt 0:02:01]} 29. gxf4 {[%emt 0:00:00]} Nh4 {[%emt 0:00:00]} 1/2-1/2

[Event "PanAm Intercolleagiate-ch 2019"]
[Site "Charlotte"]
[Date "2019.12.29"]
[Round "4.4"]
[White "Hakobyan, Aram"]
[Black "Tokhirjonova, Gulrukhbegim"]
[Result "*"]
[ECO "D78"]
[WhiteElo "2576"]
[BlackElo "2421"]
[Annotator "ChessBase"]
[PlyCount "60"]
[EventDate "2019.12.27"]
[EventType "team-tourn"]
[EventCountry "USA"]
[SourceTitle "playchess.com"]
[Source "ChessBase"]
[SourceQuality "1"]
[TimeControl "5400+30"]

1. Nf3 {[%emt 1:30:30]} d5 {[%emt 1:30:30]} 2. g3 {[%emt 0:00:30]} g6 {[%emt 0:00:30]} 3. Bg2 {[%emt 0:00:30]} Bg7 {[%emt 0:00:30]} 4. O-O {[%emt 0:00:30]} Nf6 {[%emt 0:00:30]} 5. c4 {[%emt 0:00:30]} c6 {[%emt 0:00:30]} 6. b3 {[%emt 0:00:30]} Ne4 {[%emt 0:00:30]} 7. d4 O-O {[%emt 0:00:30]} 8. Bb2 {[%emt 0:01:00]} a5 {[%emt 0:00:30]} 9. Nc3 {[%emt 0:00:30]} Bf5 {[%emt 0:00:30]} 10. Nh4 {[%emt 0:00:30]} Nxc3 {[%emt 0:00:30]} 11. Bxc3 {[%emt 0:00:30]} Be6 {[%emt 0:00:30]} 12. Qd3 {[%emt 0:00:30]} Nd7 {[%emt 0:00:30]} 13. Rad1 {[%emt 0:00:30]} a4 {[%emt 0:00:30]} 14. Bb4 {[%emt 0:00:30]} axb3 {[%emt 0:00:30]} 15. cxd5 {[%emt 0:00:30]} cxd5 {[%emt 0:00:30]} 16. Qxb3 {[%emt 0:00:30]} Nb6 {[%emt 0:00:30]} 17. Bxe7 {[%emt 0:00:30]} Qxe7 {[%emt 0:00:30]} 18. Qxb6 {[%emt 0:00:30]} Rxa2 {[%emt 0:00:30]} 19. e3 {[%emt 0:00:30]} Bf6 {[%emt 0:00:30]} 20. Nf3 {[%emt 0:00:30]} Rc8 {[%emt 0:00:30]} 21. Ra1 {[%emt 0:00:30]} Rxa1 {[%emt 0:00:30]} 22. Re1 {[%emt 0:00:30]} Rb1 23. Rxb1 Rc6 {[%emt 0:01:00]} 24. Ra1 Qc7 {[%emt 0:00:30]} 25. Qb5 Kg7 {[%emt 0:00:30]} 26. Bf1 Be7 {[%emt 0:00:30]} 27. Ne1 Bd6 {[%emt 0:00:30]} 28. Nd3 b6 {[%emt 0:00:30]} 29. Rb1 Rc3 {[%emt 0:00:30]} 30. Rb3 {[%emt 0:04:00]} Bf5 *

[Event "PanAm Intercolleagiate-ch 2019"]
[Site "Charlotte"]
[Date "2019.12.29"]
[Round "4.4"]
[White "Hakobyan, Aram"]
[Black "Tokhirjonova, Gulrukhbegim"]
[Result "1-0"]
[ECO "D78"]
[WhiteElo "2576"]
[BlackElo "2421"]
[Annotator "ChessBase"]
[PlyCount "123"]
[EventDate "2019.12.27"]
[EventType "team-tourn"]
[EventCountry "USA"]
[SourceTitle "playchess.com"]
[Source "ChessBase"]
[SourceQuality "1"]
[TimeControl "5400+30"]

1. Nf3 {[%emt 1:30:30]} d5 {[%emt 1:30:30]} 2. g3 {[%emt 0:00:30]} g6 {[%emt 0:00:30]} 3. Bg2 {[%emt 0:00:30]} Bg7 {[%emt 0:00:30]} 4. O-O {[%emt 0:00:30]} Nf6 {[%emt 0:00:30]} 5. c4 {[%emt 0:00:30]} c6 {[%emt 0:00:30]} 6. b3 {[%emt 0:00:30]} Ne4 {[%emt 0:00:30]} 7. d4 O-O {[%emt 0:00:30]} 8. Bb2 {[%emt 0:01:00]} a5 {[%emt 0:00:30]} 9. Nc3 {[%emt 0:00:30]} Bf5 {[%emt 0:00:30]} 10. Nh4 {[%emt 0:00:30]} Nxc3 {[%emt 0:00:30]} 11. Bxc3 {[%emt 0:00:30]} Be6 {[%emt 0:00:30]} 12. Qd3 {[%emt 0:00:30]} Nd7 {[%emt 0:00:30]} 13. Rad1 {[%emt 0:00:30]} a4 {[%emt 0:00:30]} 14. Bb4 {[%emt 0:00:30]} axb3 {[%emt 0:00:30]} 15. cxd5 {[%emt 0:00:30]} cxd5 {[%emt 0:00:30]} 16. Qxb3 {[%emt 0:00:30]} Nb6 {[%emt 0:00:30]} 17. Bxe7 {[%emt 0:00:30]} Qxe7 {[%emt 0:00:30]} 18. Qxb6 {[%emt 0:00:30]} Rxa2 {[%emt 0:00:30]} 19. e3 {[%emt 0:00:30]} Bf6 {[%emt 0:00:30]} 20. Nf3 {[%emt 0:00:30]} Rc8 {[%emt 0:00:30]} 21. Ra1 {[%emt 0:00:30]} Rxa1 {[%emt 0:00:30]} 22. Rxa1 Rc6 {[%emt 0:00:30]} 23. Qb5 {[%emt 0:01:00]} Qc7 {[%emt 0:00:30]} 24. Bf1 {[%emt 0:00:30]} Kg7 {[%emt 0:00:30]} 25. Ne1 {[%emt 0:00:30]} Be7 {[%emt 0:00:30]} 26. Nd3 {[%emt 0:00:30]} Bd6 {[%emt 0:00:30]} 27. Rb1 {[%emt 0:00:30]} b6 {[%emt 0:00:30]} 28. Bg2 {[%emt 0:00:30]} Rc3 {[%emt 0:00:30]} 29. Bf1 {[%emt 0:00:30]} Bf5 {[%emt 0:00:30]} 30. Rb3 {[%emt 0:00:30]} Rxb3 {[%emt 0:00:30]} 31. Qxb3 {[%emt 0:00:30]} Qc6 {[%emt 0:00:30]} 32. Qb2 {[%emt 0:00:30]} h5 {[%emt 0:00:30]} 33. Nc1 {[%emt 0:00:30]} h4 {[%emt 0:00:30]} 34. Na2 {[%emt 0:00:30]} Qc7 {[%emt 0:00:30]} 35. Bg2 {[%emt 0:00:30]} b5 {[%emt 0:00:30]} 36. Bxd5 {[%emt 0:00:30]} hxg3 {[%emt 0:00:30]} 37. hxg3 {[%emt 0:00:30]} Bxg3 {[%emt 0:00:30]} 38. fxg3 {[%emt 0:00:30]} Qxg3+ {[%emt 0:00:30]} 39. Bg2 {[%emt 0:00:30]} Qxe3+ {[%emt 0:00:30]} 40. Qf2 {[%emt 0:00:30]} Qd3 {[%emt 0:00:30]} 41. Kh2 {[%emt 0:00:30]} Qc4 {[%emt 0:00:30]} 42. Qd2 {[%emt 0:00:30]} Qc7+ {[%emt 0:00:30]} 43. Kg1 {[%emt 0:00:30]} Qg3 {[%emt 0:00:30]} 44. Qf2 {[%emt 0:00:30]} Qd3 {[%emt 0:00:30]} 45. Kh2 {[%emt 0:00:30]} Be6 {[%emt 0:00:30]} 46. d5 {[%emt 0:00:30]} Bf5 47. Nb4 {[%emt 0:00:30]} Qc3 {[%emt 0:01:00]} 48. Qf4 {[%emt 0:00:30]} Qc4 {[%emt 0:00:30]} 49. Qd2 {[%emt 0:00:30]} Qh4+ {[%emt 0:00:30]} 50. Kg1 {[%emt 0:00:30]} Qg4 {[%emt 0:00:30]} 51. d6 {[%emt 0:00:30]} f6 {[%emt 0:00:30]} 52. Nd5 {[%emt 0:00:30]} Bd7 {[%emt 0:00:30]} 53. Qc3 {[%emt 0:00:30]} Qd1+ {[%emt 0:00:30]} 54. Kf2 {[%emt 0:00:30]} Kh6 {[%emt 0:00:30]} 55. Qxf6 {[%emt 0:00:30]} Qd2+ {[%emt 0:00:30]} 56. Kg1 {[%emt 0:00:30]} Qd1+ {[%emt 0:00:30]} 57. Kh2 {[%emt 0:00:30]} Qh5+ {[%emt 0:00:30]} 58. Kg3 {[%emt 0:00:30]} Qg4+ {[%emt 0:00:30]} 59. Kf2 {[%emt 0:00:30]} b4 {[%emt 0:00:30]} 60. Bh3 {[%emt 0:00:30]} Qxh3 {[%emt 0:00:30]} 61. Qf8+ {[%emt 0:00:30]} Kg5 {[%emt 0:00:30]} 62. Qf4+ {[%emt 0:00:30]} 1-0

[Event "PanAm Intercolleagiate-ch 2019"]
[Site "Charlotte"]
[Date "2019.12.29"]
[Round "4.5"]
[White "Swiercz, Dariusz"]
[Black "Dragun, Kamil"]
[Result "1-0"]
[ECO "E62"]
[WhiteElo "2659"]
[BlackElo "2587"]
[Annotator "RC"]
[PlyCount "67"]
[EventDate "2019.12.27"]
[EventType "team-tourn"]
[EventCountry "USA"]
[SourceTitle "playchess.com"]
[Source "ChessBase"]
[SourceQuality "1"]
[TimeControl "5400+30"]

1. d4 {[%emt 1:30:30]} Nf6 {[%emt 1:30:30]} 2. c4 {[%emt 0:00:30]} g6 {[%emt 0:00:30]} 3. Nf3 {[%emt 0:00:30]} Bg7 {[%emt 0:00:30]} 4. g3 {[%emt 0:00:30]} O-O {[%emt 0:00:30]} 5. Bg2 {[%emt 0:00:30]} d6 {[%emt 0:00:30]} 6. O-O {[%emt 0:00:30]} c6 {[%emt 0:00:30]} 7. Nc3 {[%emt 0:00:30]} Bf5 {[%emt 0:00:30]} 8. b3 {[%emt 0:00:30]} Ne4 {[%emt 0:00:30]} 9. Bb2 {[%emt 0:00:30]} Nxc3 {[%emt 0:00:30]} 10. Bxc3 {[%emt 0:00:30]} Be4 {[%emt 0:00:30]} 11. e3 {[%emt 0:00:30]} d5 {[%emt 0:00:30]} 12. Bh3 {[%emt 0:00:30]} dxc4 {[%emt 0:00:30]} 13. bxc4 {[%emt 0:00:30]} c5 {[%emt 0:00:30]} 14. Rc1 {[%emt 0:00:30]} e6 {[%emt 0:00:30]} 15. Nd2 {[%emt 0:00:30]} cxd4 {[%emt 0:00:30]} 16. exd4 {[%emt 0:00:30]} Bc6 {[%emt 0:00:30]} 17. Nb3 {[%emt 0:00:30]} a5 {[%emt 0:00:30]} 18. Qd2 {[%emt 0:00:30]} b6 {[%emt 0:00:30]} 19. d5 {[%emt 0:00:30]} exd5 {[%emt 0:00:30]} 20. Bxg7 {[%emt 0:00:30]} Kxg7 {[%emt 0:00:30]} 21. Rfd1 {[%emt 0:00:30]} d4 {[%emt 0:00:30]} 22. c5 {[%emt 0:00:30]} bxc5 {[%emt 0:00:30]} 23. Rxc5 {[%emt 0:00:30]} Bf3 {[%emt 0:00:30]} 24. Re1 {[%emt 0:00:30]} d3 {[%emt 0:00:30]} 25. Rc8 {[%emt 0:00:30]} Qd6 {[%emt 0:00:30]} 26. Qc3+ {[%emt 0:00:30]} Kh6 {[%emt 0:00:30]} 27. Rxf8 {[%emt 0:00:30]} Qxf8 28. Nd4 {[%emt 0:00:30]} Qb4 {[%emt 0:01:00]} 29. Qxb4 {[%emt 0:00:30]} axb4 {[%emt 0:00:30]} 30. Nxf3 {[%emt 0:00:30]} Rxa2 {[%emt 0:00:30]} 31. Bf1 {[%emt 0:00:30]} b3 {[%emt 0:00:30]} 32. Bxd3 {[%emt 0:00:30]} b2 {[%emt 0:00:30]} 33. Kg2 {[%emt 0:00:30]} Ra1 {[%emt 0:00:30]} 34. Rb1 {[%emt 0:00:30]} 1-0

[Event "PanAm Intercolleagiate-ch 2019"]
[Site "Charlotte"]
[Date "2019.12.29"]
[Round "4.7"]
[White "Theodorou, Nikolas"]
[Black "Belous, Vladimir"]
[Result "1-0"]
[ECO "E60"]
[WhiteElo "2555"]
[BlackElo "2529"]
[Annotator "ChessBase"]
[PlyCount "111"]
[EventDate "2019.12.27"]
[EventType "team-tourn"]
[EventCountry "USA"]
[SourceTitle "playchess.com"]
[Source "ChessBase"]
[SourceQuality "1"]
[TimeControl "5400+30"]

1. d4 {[%emt 1:30:30]} Nf6 {[%emt 1:30:30]} 2. c4 {[%emt 0:00:30]} g6 {[%emt 0:00:30]} 3. g3 {[%emt 0:00:30]} Bg7 {[%emt 0:00:30]} 4. Bg2 {[%emt 0:00:30]} c5 {[%emt 0:00:30]} 5. Nf3 {[%emt 0:00:30]} Qa5+ {[%emt 0:00:30]} 6. Bd2 {[%emt 0:00:30]} Qb6 {[%emt 0:00:30]} 7. Qb3 {[%emt 0:00:30]} Ne4 {[%emt 0:00:30]} 8. dxc5 {[%emt 0:00:30]} Qxb3 {[%emt 0:00:30]} 9. axb3 {[%emt 0:00:30]} Bxb2 {[%emt 0:00:30]} 10. Ra2 {[%emt 0:00:30]} Bg7 {[%emt 0:00:30]} 11. Be3 {[%emt 0:00:30]} Na6 {[%emt 0:00:30]} 12. Ra5 {[%emt 0:00:30]} Nb4 {[%emt 0:00:30]} 13. O-O {[%emt 0:00:30]} Nc6 {[%emt 0:00:30]} 14. Ra2 {[%emt 0:00:30]} Nb4 {[%emt 0:00:30]} 15. Ra5 {[%emt 0:00:30]} Nc6 {[%emt 0:00:30]} 16. Ra4 {[%emt 0:00:30]} f5 {[%emt 0:00:30]} 17. b4 {[%emt 0:00:30]} e5 {[%emt 0:00:30]} 18. Nfd2 {[%emt 0:00:30]} Nf6 {[%emt 0:00:30]} 19. b5 {[%emt 0:00:30]} Nd8 {[%emt 0:00:30]} 20. Nb3 {[%emt 0:00:30]} Ne6 {[%emt 0:00:30]} 21. Nc3 {[%emt 0:00:30]} a6 {[%emt 0:00:30]} 22. Nd5 {[%emt 0:00:30]} Rb8 {[%emt 0:00:30]} 23. Rb4 {[%emt 0:00:30]} axb5 {[%emt 0:00:30]} 24. cxb5 {[%emt 0:00:30]} Nxd5 {[%emt 0:00:30]} 25. Bxd5 {[%emt 0:00:30]} Nc7 {[%emt 0:00:30]} 26. Bg2 {[%emt 0:00:30]} Ra8 {[%emt 0:00:30]} 27. b6 {[%emt 0:00:30]} Ne6 {[%emt 0:00:30]} 28. Bd5 {[%emt 0:00:30]} Ke7 {[%emt 0:00:30]} 29. Rd1 {[%emt 0:00:30]} Bf6 {[%emt 0:00:30]} 30. Rb5 {[%emt 0:00:30]} g5 {[%emt 0:00:30]} 31. Ra5 {[%emt 0:00:30]} Rxa5 {[%emt 0:00:30]} 32. Nxa5 {[%emt 0:00:30]} f4 {[%emt 0:00:30]} 33. Bc1 {[%emt 0:00:30]} Nxc5 {[%emt 0:00:30]} 34. Ba3 {[%emt 0:00:30]} d6 35. Nc4 {[%emt 0:00:30]} e4 {[%emt 0:01:00]} 36. Bc6 {[%emt 0:00:30]} bxc6 {[%emt 0:00:30]} 37. Nxd6 {[%emt 0:00:30]} Ke6 {[%emt 0:00:30]} 38. Bxc5 {[%emt 0:00:30]} Rd8 {[%emt 0:00:30]} 39. Rb1 {[%emt 0:00:30]} Be5 {[%emt 0:00:30]} 40. Nxe4 {[%emt 0:00:30]} Kf5 {[%emt 0:00:30]} 41. Nxg5 {[%emt 0:00:30]} Rd5 {[%emt 0:00:30]} 42. e4+ {[%emt 0:00:30]} fxe3 {[%emt 0:00:30]} 43. Bxe3 {[%emt 0:00:30]} Rb5 {[%emt 0:00:30]} 44. Rc1 {[%emt 0:00:30]} Bb7 {[%emt 0:00:30]} 45. Nxh7 {[%emt 0:00:30]} Bb2 {[%emt 0:00:30]} 46. Rd1 {[%emt 0:00:30]} c5 {[%emt 0:00:30]} 47. Rd7 {[%emt 0:00:30]} Ba8 {[%emt 0:00:30]} 48. h3 {[%emt 0:00:30]} Bg7 {[%emt 0:00:30]} 49. f4 {[%emt 0:00:30]} Bc3 {[%emt 0:00:30]} 50. Ng5 {[%emt 0:00:30]} c4 {[%emt 0:00:30]} 51. Rf7+ {[%emt 0:00:30]} Kg6 {[%emt 0:00:30]} 52. f5+ {[%emt 0:00:30]} Rxf5 {[%emt 0:00:30]} 53. b7 {[%emt 0:00:30]} Bxb7 {[%emt 0:00:30]} 54. Rxb7 {[%emt 0:00:30]} Bf6 {[%emt 0:00:30]} 55. Rb6 {[%emt 0:00:30]} c3 {[%emt 0:00:30]} 56. Ne4 {[%emt 0:00:30]} 1-0

[Event "PanAm Intercolleagiate-ch 2019"]
[Site "Charlotte"]
[Date "2019.12.29"]
[Round "4.9"]
[White "Preotu, Razvan"]
[Black "Quesada Perez, Yuniesky"]
[Result "1/2-1/2"]
[ECO "C54"]
[WhiteElo "2487"]
[BlackElo "2601"]
[Annotator "RC"]
[PlyCount "106"]
[EventDate "2019.12.27"]
[EventType "team-tourn"]
[EventCountry "USA"]
[SourceTitle "playchess.com"]
[Source "ChessBase"]
[SourceQuality "1"]
[TimeControl "5400+30"]

1. e4 {[%emt 0:00:00]} e5 {[%emt 0:00:00]} 2. Nf3 {[%emt 0:00:00]} Nc6 {[%emt 0:00:00]} 3. Bc4 {[%emt 0:00:07]} Bc5 {[%emt 0:00:00]} 4. O-O {[%emt 0:00:12]} Nf6 {[%emt 0:00:00]} 5. d3 {[%emt 0:00:12]} d6 {[%emt 0:00:05]} 6. c3 {[%emt 0:00:14]} a6 {[%emt 0:00:27]} 7. a4 {[%emt 0:01:16]} Ba7 {[%emt 0:00:55]} 8. Re1 {[%emt 0:02:05]} O-O {[%emt 0:02:03]} 9. h3 {[%emt 0:00:25]} Ne7 {[%emt 0:01:05]} 10. d4 {[%emt 0:02:58]} Ng6 {[%emt 0:03:31]} 11. Bd3 {[%emt 0:00:14]} h6 {[%emt 0:12:44]} 12. Be3 {[%emt 0:03:21]} Re8 {[%emt 0:02:56]} 13. Nbd2 {[%emt 0:00:30]} Nh7 {[%emt 0:07:23]} 14. Nf1 {[%emt 0:08:25]} Ng5 {[%emt 0:01:30]} 15. Nxg5 {[%emt 0:16:37]} hxg5 {[%emt 0:00:08]} 16. g3 {[%emt 0:00:07]} Nf8 {[%emt 0:20:10]} 17. Qf3 {[%emt 0:09:07]} Be6 {[%emt 0:07:32]} 18. Kh2 {[%emt 0:07:56]} Nh7 {[%emt 0:01:18]} 19. d5 {[%emt 0:01:12]} Bd7 {[%emt 0:00:53]} 20. a5 {[%emt 0:03:47]} g6 {[%emt 0:01:58]} 21. Bxa7 {[%emt 0:00:40]} Rxa7 {[%emt 0:00:03]} 22. Ne3 {[%emt 0:00:28]} Kg7 {[%emt 0:01:06]} 23. b4 {[%emt 0:00:39]} Rh8 {[%emt 0:00:40]} 24. g4 {[%emt 0:00:38]} Nf6 {[%emt 0:01:51]} 25. Kg2 {[%emt 0:00:48]} Qe7 {[%emt 0:04:57]} 26. Rab1 {[%emt 0:08:20]} b5 {[%emt 0:03:48]} 27. c4 {[%emt 0:03:03]} Rb8 {[%emt 0:01:57]} 28. cxb5 {[%emt 0:06:45]} Bxb5 {[%emt 0:00:35]} 29. Bxb5 {[%emt 0:00:07]} Rxb5 {[%emt 0:00:03]} 30. Nc4 {[%emt 0:00:10]} Qe8 {[%emt 0:01:28]} 31. Qc3 {[%emt 0:06:13]} Rb8 {[%emt 0:01:20]} 32. Nb2 {[%emt 0:00:08]} Qd7 {[%emt 0:11:51]} 33. f3 {[%emt 0:02:03]} Ng8 {[%emt 0:01:17]} 34. Nd3 {[%emt 0:00:39]} Ne7 {[%emt 0:00:18]} 35. Rbc1 {[%emt 0:01:21]} Rc8 {[%emt 0:00:42]} 36. Qd2 {[%emt 0:00:23]} c6 {[%emt 0:03:58]} 37. dxc6 {[%emt 0:02:29]} Nxc6 {[%emt 0:01:30]} 38. Qxg5 {[%emt 0:00:10]} Rac7 {[%emt 0:01:15]} 39. Rc4 {[%emt 0:06:59]} Nd8 {[%emt 0:02:30]} 40. Rxc7 {[%emt 0:00:11]} Rxc7 {[%emt 0:00:03]} 41. Qd2 {[%emt 0:01:30]} Ne6 {[%emt 0:00:19]} 42. Rc1 {[%emt 0:00:53]} Rxc1 {[%emt 0:01:34]} 43. Nxc1 {[%emt 0:00:06]} Nf4+ {[%emt 0:00:43]} 44. Kg3 {[%emt 0:01:01]} Qa7 {[%emt 0:00:26]} 45. Ne2 {[%emt 0:03:55]} Nxe2+ {[%emt 0:01:02]} 46. Qxe2 {[%emt 0:00:04]} Qg1+ {[%emt 0:00:04]} 47. Qg2 {[%emt 0:00:06]} Qe1+ {[%emt 0:00:19]} 48. Qf2 {[%emt 0:00:05]} Qxb4 {[%emt 0:00:11]} 49. Qb6 {[%emt 0:00:29]} Qe1+ {[%emt 0:00:32]} 50. Kg2 {[%emt 0:00:04]} Qd2+ {[%emt 0:01:28]} 51. Kg3 {[%emt 0:00:22]} Qe1+ {[%emt 0:01:21]} 52. Kg2 {[%emt 0:00:05]} Qd2+ {[%emt 0:01:02]} 53. Kg3 {[%emt 0:00:05]} Qe1+ {[%emt 0:00:31]} 1/2-1/2

[Event "PanAm Intercolleagiate-ch 2019"]
[Site "Charlotte"]
[Date "2019.12.29"]
[Round "4.11"]
[White "Reshef, Omer"]
[Black "Cordova, Emilio"]
[Result "1/2-1/2"]
[ECO "B50"]
[WhiteElo "2458"]
[BlackElo "2585"]
[Annotator "ChessBase"]
[PlyCount "80"]
[EventDate "2019.12.27"]
[EventType "team-tourn"]
[EventCountry "USA"]
[SourceTitle "playchess.com"]
[Source "ChessBase"]
[SourceQuality "1"]
[TimeControl "5400+30"]

1. e4 {[%emt 1:30:30]} c5 {[%emt 1:30:30]} 2. Nf3 {[%emt 0:00:30]} Nc6 {[%emt 0:00:30]} 3. b3 {[%emt 0:00:30]} d6 {[%emt 0:00:30]} 4. Bb2 {[%emt 0:00:30]} Nf6 {[%emt 0:00:30]} 5. Nc3 {[%emt 0:00:30]} e5 {[%emt 0:00:30]} 6. g3 {[%emt 0:00:30]} g6 {[%emt 0:00:30]} 7. Bg2 {[%emt 0:00:30]} Bg7 {[%emt 0:00:30]} 8. O-O {[%emt 0:00:30]} O-O {[%emt 0:00:30]} 9. d3 {[%emt 0:00:30]} Rb8 {[%emt 0:00:30]} 10. a4 {[%emt 0:00:30]} a6 {[%emt 0:00:30]} 11. Nd2 {[%emt 0:00:30]} b5 {[%emt 0:00:30]} 12. axb5 {[%emt 0:00:30]} axb5 {[%emt 0:00:30]} 13. h3 {[%emt 0:00:30]} Be6 {[%emt 0:00:30]} 14. Re1 {[%emt 0:00:30]} Qd7 {[%emt 0:00:30]} 15. Kh2 {[%emt 0:00:30]} c4 {[%emt 0:00:30]} 16. bxc4 {[%emt 0:00:30]} bxc4 {[%emt 0:00:30]} 17. Ba3 {[%emt 0:00:30]} cxd3 {[%emt 0:00:30]} 18. cxd3 {[%emt 0:00:30]} Rfc8 {[%emt 0:00:30]} 19. Nd5 {[%emt 0:00:30]} Bxd5 {[%emt 0:00:30]} 20. exd5 {[%emt 0:00:30]} Nb4 {[%emt 0:00:30]} 21. Bxb4 {[%emt 0:00:30]} Rxb4 {[%emt 0:00:30]} 22. Ra6 {[%emt 0:00:30]} Qf5 {[%emt 0:00:30]} 23. Qe2 {[%emt 0:00:30]} Rb2 {[%emt 0:00:30]} 24. Rb1 {[%emt 0:00:30]} Rbc2 {[%emt 0:00:30]} 25. Rxd6 {[%emt 0:00:30]} Bh6 {[%emt 0:00:30]} 26. Rd1 {[%emt 0:00:30]} R8c3 {[%emt 0:00:30]} 27. Qf3 {[%emt 0:00:30]} Qxf3 {[%emt 0:00:30]} 28. Nxf3 {[%emt 0:00:30]} Kg7 {[%emt 0:00:30]} 29. Kg1 {[%emt 0:00:30]} e4 {[%emt 0:00:30]} 30. Rxf6 {[%emt 0:00:30]} Rc1 {[%emt 0:00:30]} 31. Rxc1 {[%emt 0:00:30]} Rxc1+ {[%emt 0:00:30]} 32. Bf1 {[%emt 0:00:30]} Kxf6 {[%emt 0:00:30]} 33. dxe4 {[%emt 0:00:30]} Ke7 {[%emt 0:00:30]} 34. Kg2 {[%emt 0:00:30]} Kd6 {[%emt 0:00:30]} 35. Bb5 {[%emt 0:00:30]} f6 {[%emt 0:00:30]} 36. h4 {[%emt 0:00:30]} Kc5 {[%emt 0:00:30]} 37. Be2 {[%emt 0:00:30]} Rc2 {[%emt 0:00:30]} 38. Kf1 {[%emt 0:00:30]} Rc1+ {[%emt 0:00:30]} 39. Kg2 {[%emt 0:00:30]} Rc2 {[%emt 0:00:30]} 40. Kf1 {[%emt 0:00:30]} Rc1+ {[%emt 0:00:30]} 1/2-1/2